bitfinex-derivatives/quotes_SOLF0:USTF0_20241203
["timestamp","ask_amount","ask_price","bid_price","bid_amount"]
[1733234077589,34.42343887,218.58,218.35,47.56]
[1733234077798,2.2876,218.56,218.35,81.98343887]
[1733234077995,34.42343887,218.54,218.35,81.98343887]
[1733234078202,34.42343887,218.58,218.39,34.42343887]
[1733234078596,34.42343887,218.54,218.35,47.56]
[1733234078996,34.42343887,218.54,218.25,1.6789]
[1733234079191,34.42343887,218.54,218.36,34.42343887]
[1733234079399,34.42343887,218.54,218.44,2.2887]
[1733234079597,34.42343887,218.54,218.36,34.42343887]
[1733234079800,34.42343887,218.58,218.4,72.90343887]
[1733234080003,2.2875,218.57,218.4,38.48]
[1733234080200,34.42343887,218.54,218.4,38.48]
[1733234080495,36.71083887,218.58,218.45,2.2886]
[1733234080897,34.42343887,218.58,218.4,64.42343887]
[1733234081098,34.42343887,218.58,218.4,30.0]
[1733234081802,34.42343887,218.54,218.4,38.5]
[1733234082698,34.42343887,218.58,218.4,38.5]
[1733234083595,34.42343887,218.68,218.47,34.42343887]
[1733234084295,34.42343887,218.64,218.54,2.2876]
[1733234084599,34.42343887,218.64,218.43,34.42343887]
[1733234084798,34.42343887,218.68,218.51,34.42343887]
[1733234084995,34.42343887,218.72,218.51,34.42343887]
[1733234085299,34.42343887,218.68,218.46,34.42343887]
[1733234085502,34.42343887,218.68,218.58,2.2872]
[1733234085799,34.42343887,218.79,218.54,42.92343887]
[1733234085997,34.42343887,218.83,218.73,2.2856]
[1733234086198,34.42343887,218.79,218.47,1.6529]
[1733234086394,34.42343887,218.7,218.51,34.42343887]
[1733234086902,34.42343887,218.78,218.55,34.42343887]
[1733234087094,34.42343887,218.78,218.47,1.6529]
[1733234087095,34.42343887,218.7,218.51,34.42343887]
[1733234087294,34.42343887,218.7,218.47,1.6529]
[1733234087495,34.42343887,218.7,218.5,34.42343887]
[1733234088300,2.2862,218.68,218.53,2.2877]
[1733234088500,34.42343887,218.66,218.47,36.07633887]
[1733234088900,34.42343887,218.62,218.43,34.42343887]
[1733234089096,34.42343887,218.68,218.47,34.42343887]
[1733234089800,34.42343887,218.72,218.51,34.42343887]
[1733234090000,34.42343887,218.72,218.55,34.42343887]
[1733234090398,34.42343887,218.8,218.73,2.2856]
[1733234090603,34.42343887,218.8,218.63,34.42343887]
[1733234090801,34.42343887,218.84,218.63,34.42343887]
[1733234091108,34.42343887,218.8,218.6,77.51543887]
[1733234091297,34.42343887,218.76,218.6,43.092]
[1733234091602,34.42343887,218.75,218.6,43.092]
[1733234091995,34.42343887,218.79,218.69,2.286]
[1733234092197,34.42343887,218.83,218.6,77.51543887]
[1733234092404,47.6,219.03,218.72,34.42343887]
[1733234092405,2.30508784,219.03,218.72,34.42343887]
[1733234092605,34.42343887,218.96,218.76,34.42343887]
[1733234092999,34.42343887,218.96,218.82,2.2847]
[1733234093198,34.42343887,218.96,218.76,34.42343887]
[1733234093404,34.42343887,218.92,218.71,34.42343887]
[1733234093600,34.42343887,218.84,218.67,34.42343887]
[1733234093807,34.42343887,218.84,218.61,3.2374]
[1733234094111,34.42343887,218.88,218.68,34.42343887]
[1733234094709,34.42343887,218.92,218.72,34.42343887]
[1733234095605,1.7292,219.1,218.8,34.42343887]
[1733234095803,34.42343887,219.0,218.8,34.42343887]
[1733234096004,34.42343887,218.96,218.76,34.42343887]
[1733234096406,34.42343887,218.96,218.76,30.02913887]
[1733234096606,34.42343887,218.92,218.72,34.42343887]
[1733234097208,34.42343887,218.92,218.72,30.75653887]
[1733234097909,34.42343887,218.88,218.68,47.56]
[1733234098102,34.42343887,218.84,218.68,47.56]
[1733234098309,34.42343887,218.8,218.61,1.6069]
[1733234098608,2.2854,218.76,218.67,2.2863]
[1733234098909,34.42343887,218.76,218.61,1.6069]
[1733234099215,34.42343887,218.76,218.57,34.42343887]
[1733234099408,34.42343887,218.8,218.61,34.42343887]
[1733234099809,34.42343887,218.8,218.57,34.42343887]
[1733234100009,34.42343887,218.76,218.57,34.42343887]
[1733234100206,2.284,218.89,218.79,2.285]
[1733234100405,13.61,219.11,218.69,34.42343887]
[1733234100406,34.42343887,218.97,218.73,34.42343887]
[1733234100603,34.42343887,219.01,218.81,34.42343887]
[1733234100810,2.2824,219.05,218.85,34.42343887]
[1733234101103,0.65691192,219.04,218.89,34.42343887]
[1733234101304,2.2819,219.1,218.95,2.2833]
[1733234101507,34.42343887,219.07,218.89,34.42343887]
[1733234101707,34.42343887,219.03,218.8,1.7245]
[1733234101913,34.42343887,219.03,218.81,34.42343887]
[1733234102113,34.42343887,218.91,218.7,1.6032]
[1733234102308,34.42343887,219.01,218.65,34.42343887]
[1733234102515,34.42343887,218.86,218.65,34.42343887]
[1733234102907,2.2847,218.83,218.71,2.2859]
[1733234103113,34.42343887,218.9,218.63,13.58]
[1733234103418,34.42343887,218.75,218.63,13.58]
[1733234103617,34.42343887,218.71,218.63,3.5475649]
[1733234103819,34.42343887,218.67,218.42,34.42343887]
[1733234104014,34.42343887,218.67,218.41,1.755]
[1733234104015,34.42343887,218.57,218.39,47.56]
[1733234104216,34.42343887,218.53,218.41,13.58]
[1733234105017,34.42343887,218.49,218.26,6.24924948]
[1733234105217,2.2889,218.43,218.4,21.8076]
[1733234105410,34.42343887,218.41,218.4,7.75649]
[1733234105610,34.42343887,218.41,218.26,6.24924948]
[1733234105811,34.42343887,218.46,218.26,6.24924948]
[1733234106207,2.2894,218.38,218.26,6.24924948]
[1733234106408,34.42343887,218.46,218.26,6.24924948]
[1733234106809,2.2897,218.35,218.26,6.24924948]
[1733234107014,34.42343887,218.42,218.26,6.24924948]
[1733234107219,34.42343887,218.38,218.26,6.24924948]
[1733234107920,34.42343887,218.34,218.26,6.24924948]
[1733234108221,34.42343887,218.38,218.25,18.74774844]
[1733234109014,34.42343887,218.38,218.23,49.99399584]
[1733234109015,34.42343887,218.34,218.15,34.42343887]
[1733234109215,34.42343887,218.3,217.9,47.62]
[1733234109415,34.42343887,218.3,218.09,13.58]
[1733234109619,34.42343887,218.34,218.09,13.58]
[1733234109821,34.42343887,218.34,218.17,13.58]
[1733234110920,34.42343887,218.34,218.13,13.58]
[1733234111824,34.42343887,218.23,217.93,13.58]
[1733234112014,34.42343887,218.23,218.04,13.58]
[1733234112322,34.42343887,218.23,218.07,13.58]
[1733234112925,34.42343887,218.23,218.13,13.58]
[1733234113425,34.42343887,218.14,218.1,2.2923]
[1733234113624,34.42343887,218.15,217.95,34.42343887]
[1733234113823,24.42343887,218.15,217.96,13.58]
[1733234114019,24.42343887,218.15,218.07,13.58]
[1733234114814,24.42343887,218.15,218.05,13.58]
[1733234115019,24.42343887,218.15,217.94,13.58]
[1733234115222,24.42343887,218.15,218.05,13.58]
[1733234115420,24.42343887,218.15,217.93,34.42343887]
[1733234115619,34.42343887,218.11,217.89,34.42343887]
[1733234115819,34.42343887,218.11,217.84,13.58]
[1733234116124,34.42343887,218.11,218.01,13.58]
[1733234116324,34.42343887,218.15,218.01,13.58]
[1733234116524,34.42343887,218.24,218.06,13.58]
[1733234117020,34.42343887,218.24,218.09,13.58]
[1733234117328,34.42343887,218.18,218.01,1.7889]
[1733234117624,34.42343887,218.24,218.09,13.58]
[1733234118019,34.42343887,218.28,218.09,48.00343887]
[1733234118220,34.42343887,218.38,218.18,13.58]
[1733234118517,34.42343887,218.24,217.73,6.8886]
[1733234118721,2.2916,218.18,218.05,2.2928]
[1733234118919,34.42343887,218.24,217.94,34.42343887]
[1733234118920,34.42343887,218.16,217.94,34.42343887]
[1733234119123,34.42343887,218.12,217.9,34.42343887]
[1733234119621,34.42343887,218.04,217.81,3.4434]
[1733234119824,34.42343887,218.15,217.97,13.58]
[1733234120021,34.42343887,218.19,218.13,13.58]
[1733234120229,34.42343887,218.23,218.13,13.58]
[1733234120827,34.42343887,218.27,218.17,13.58]
[1733234121024,34.42343887,218.35,218.02,34.42343887]
[1733234121025,34.42343887,218.23,218.03,13.58]
[1733234121218,34.42343887,218.23,218.14,13.58]
[1733234121426,34.42343887,218.23,218.02,34.42343887]
[1733234121725,34.42343887,218.23,218.01,1.6548]
[1733234121726,34.42343887,218.15,218.01,1.6548]
[1733234121922,34.42343887,218.11,217.97,1.6723]
[1733234122127,34.42343887,218.07,217.94,13.58]
[1733234122625,34.42343887,218.07,217.97,13.58]
[1733234123323,34.42343887,218.07,217.99,13.58]
[1733234123821,34.42343887,218.08,217.99,13.58]
[1733234124523,34.42343887,218.08,217.86,47.68]
[1733234124524,34.42343887,218.08,217.97,13.58]
[1733234124729,29.42343887,218.04,217.97,13.58]
[1733234125028,29.42343887,218.04,217.86,47.68]
[1733234125029,29.42343887,218.04,217.95,13.58]
[1733234125727,31.71643887,218.04,217.95,13.58]
[1733234125928,29.42343887,218.04,217.95,13.58]
[1733234126124,29.42343887,218.04,217.96,13.58]
[1733234126320,29.42343887,218.04,217.94,13.58]
[1733234126526,34.42343887,218.0,217.8,34.42343887]
[1733234126833,30.42343887,218.0,217.8,34.42343887]
[1733234127024,34.42343887,217.96,217.76,34.42343887]
[1733234127331,34.42343887,217.96,217.86,2.2949]
[1733234127629,34.42343887,217.96,217.76,34.42343887]
[1733234127630,34.42343887,217.96,217.77,13.58]
[1733234127830,32.42343887,217.96,217.77,13.58]
[1733234128030,32.42343887,217.96,217.87,13.58]
[1733234128231,34.42343887,218.02,217.87,13.58]
[1733234128534,34.42343887,218.02,217.84,13.58]
[1733234128535,34.42343887,217.93,217.84,13.58]
[1733234128834,34.42343887,217.93,217.73,47.72]
[1733234129330,34.42343887,217.89,217.73,47.72]
[1733234129531,34.42343887,217.89,217.78,13.58]
[1733234129732,34.42343887,217.85,217.7,3.5939]
[1733234130132,2.2953,217.82,217.7,5.8904]
[1733234130331,34.42343887,217.85,217.7,3.5939]
[1733234130531,34.42343887,217.85,217.69,13.58]
[1733234130726,34.42343887,217.91,217.39,90.56829883]
[1733234130727,34.42343887,217.7,217.39,90.56829883]
[1733234130935,34.42343887,217.8,217.39,15.57730507]
[1733234130936,34.42343887,217.66,217.39,15.57730507]
[1733234131131,34.42343887,217.62,217.41,34.42343887]
[1733234131431,34.42343887,217.62,217.39,15.57730507]
[1733234131432,34.42343887,217.52,217.39,15.57730507]
[1733234131632,34.42343887,217.48,217.39,15.57730507]
[1733234131830,34.42343887,217.44,217.39,15.57730507]
[1733234132026,34.42343887,217.4,217.06,223.19324859]
[1733234132326,34.42343887,217.29,217.07,1.6716]
[1733234132521,68.84687774,217.18,217.06,124.9849896]
[1733234132725,34.42343887,217.14,217.06,124.9849896]
[1733234133033,34.42343887,217.1,216.93,124.9849896]
[1733234133333,34.42343887,217.14,216.93,124.9849896]
[1733234133334,34.42343887,217.01,216.93,124.9849896]
[1733234133529,34.42343887,216.97,216.93,124.9849896]
[1733234133732,34.42343887,216.97,216.59,34.42343887]
[1733234133933,34.42343887,217.01,216.55,1.7918]
[1733234133934,34.42343887,216.82,216.55,1.7918]
[1733234134130,32.33228887,216.79,216.55,1.7918]
[1733234134336,0.1923,217.34,216.55,1.7918]
[1733234134337,13.61,217.18,216.55,1.7918]
[1733234134524,34.42343887,216.9,216.68,34.42343887]
[1733234134731,34.42343887,216.94,216.72,34.42343887]
[1733234134925,47.78,217.19,216.6,13.58]
[1733234134926,4.6011,217.33,216.76,34.42343887]
[1733234135234,34.42343887,217.11,216.9,34.42343887]
[1733234135426,34.42343887,217.15,216.94,34.42343887]
[1733234135629,34.42343887,217.11,216.87,34.42343887]
[1733234135925,34.42343887,216.9,216.42,4.6201]
[1733234136125,34.42343887,216.8,216.43,0.84762149]
[1733234136337,34.42343887,216.8,216.13,1.15347434]
[1733234136338,34.76849447,216.59,216.05,3.77912205]
[1733234136526,34.76849447,216.46,216.23,34.76849447]
[1733234137034,34.76849447,216.46,216.15,34.76849447]
[1733234137234,34.76849447,216.41,216.17,34.76849447]
[1733234137434,34.76849447,216.36,216.06,1.9039]
[1733234137634,34.76849447,216.2,215.76,4.6343]
[1733234137833,47.82,216.36,215.55,3.4949]
[1733234137834,34.76849447,216.26,215.55,3.4949]
[1733234138026,34.76849447,216.26,215.97,116.96697294]
[1733234138228,47.82,216.36,216.02,34.76849447]
[1733234138432,34.76849447,216.34,216.08,34.76849447]
[1733234138637,1.0,216.35,215.97,82.19847847]
[1733234138839,0.5629,217.03,216.29,34.76849447]
[1733234139032,47.92,217.02,216.39,34.76849447]
[1733234139236,48.92,217.02,216.57,2.3085]
[1733234139433,34.76849447,216.75,216.27,3.3812]
[1733234139637,34.76849447,216.6,215.98,13.61]
[1733234139830,34.76849447,216.38,216.18,2.3126]
[1733234140030,34.76849447,216.33,215.98,1.7056]
[1733234140335,47.92,216.55,216.1,2.3135]
[1733234140539,34.76849447,216.29,216.04,34.76849447]
[1733234140738,34.76849447,216.29,215.99,34.76849447]
[1733234141238,34.76849447,216.29,216.01,34.76849447]
[1733234141639,34.76849447,216.59,216.07,34.76849447]
[1733234141938,1.0,216.28,216.09,2.3136]
[1733234142131,34.76849447,216.41,216.14,34.76849447]
[1733234142531,34.76849447,216.25,216.1,14.24]
[1733234142730,34.76849447,216.25,216.1,3.7]
[1733234142934,2.3117,216.27,216.1,6.0135]
[1733234143135,34.76849447,216.26,216.1,3.7]
[1733234143332,34.76849447,216.21,216.1,3.7]
[1733234143633,1.0,216.26,216.1,3.7]
[1733234144033,34.76849447,216.37,216.1,3.7]
[1733234144232,34.76849447,216.59,216.2,34.76849447]
[1733234144432,34.76849447,216.43,216.1,3.7]
[1733234144631,34.76849447,216.59,216.31,2.3112]
[1733234144840,34.76849447,216.35,216.1,3.7]
[1733234145036,34.76849447,216.27,216.1,3.7]
[1733234145235,34.76849447,216.27,216.07,3.7]
[1733234145639,1.64785261,216.58,216.08,34.76849447]
[1733234145834,34.76849447,216.35,216.07,3.7]
[1733234146244,0.64785261,216.58,216.07,3.7]
[1733234146245,1.0,216.34,216.07,3.7]
[1733234146445,34.76849447,216.28,216.07,3.7]
[1733234146643,1.0,216.34,216.07,3.7]
[1733234146845,34.76849447,216.28,216.07,3.7]
[1733234147044,34.76849447,216.28,216.07,7.27]
[1733234147245,35.76849447,216.33,216.07,42.03849447]
[1733234147448,1.0,216.33,216.07,7.27]
[1733234147640,34.76849447,216.51,216.24,34.76849447]
[1733234148043,34.76849447,216.51,216.21,34.76849447]
[1733234148244,34.76849447,216.51,216.38,2.3103]
[1733234148537,34.76849447,216.45,215.38,713.0]
[1733234148738,34.76849447,216.39,216.15,34.76849447]
[1733234148941,34.76849447,216.48,216.15,34.76849447]
[1733234149141,0.64785261,216.58,216.16,34.76849447]
[1733234149347,34.76849447,216.37,216.02,1.7835]
[1733234149547,34.76849447,216.32,216.03,34.76849447]
[1733234149736,34.76849447,216.36,216.08,34.76849447]
[1733234149942,34.76849447,216.36,216.26,2.3117]
[1733234150137,34.76849447,216.36,216.04,34.76849447]
[1733234150138,34.76849447,216.46,216.19,34.76849447]
[1733234150337,0.64785261,216.58,216.34,34.76849447]
[1733234150747,0.64785261,216.58,216.34,48.06]
[1733234150938,0.64785261,216.58,216.37,34.76849447]
[1733234151337,0.64785261,216.58,216.34,48.06]
[1733234151543,0.64785261,216.58,216.43,2.3098]
[1733234151744,35.41634708,216.58,216.28,1.7665]
[1733234151945,34.76849447,216.53,216.31,34.76849447]
[1733234152243,34.76849447,216.5,216.28,1.7665]
[1733234152438,34.76849447,216.45,216.27,1.8639]
[1733234152640,30.41634708,216.58,216.12,34.76849447]
[1733234152845,34.76849447,216.51,216.28,34.76849447]
[1733234153040,34.76849447,216.51,216.41,2.31]
[1733234153245,34.76849447,216.51,216.29,13.58]
[1733234153545,29.76556756,216.8,216.39,13.58]
[1733234153746,34.76849447,216.71,216.44,13.58]
[1733234153942,34.76849447,216.71,216.49,34.76849447]
[1733234154147,34.76849447,217.03,216.55,13.58]
[1733234154343,34.76849447,216.84,216.6,13.58]
[1733234154541,34.76849447,216.81,216.45,1.8129]
[1733234154746,34.76849447,216.6,216.36,34.76849447]
[1733234154948,34.76849447,216.65,216.41,34.76849447]
[1733234155149,34.76849447,216.65,216.27,6.3334]
[1733234155150,2.3057,216.82,216.58,2.3082]
[1733234155350,29.70110971,216.92,216.56,34.76849447]
[1733234155546,37.49048159,216.83,216.5,37.49048159]
[1733234155754,37.49048159,216.77,216.43,37.49048159]
[1733234155944,37.49048159,216.71,216.42,48.06]
[1733234156146,37.49048159,216.65,216.54,2.3086]
[1733234156349,37.49048159,216.65,216.32,37.49048159]
[1733234156546,1.0,216.82,216.08,37.49048159]
[1733234156547,37.49048159,216.43,216.08,37.49048159]
[1733234156748,37.49048159,216.43,216.41,2.31]
[1733234156957,37.49048159,216.43,216.2,1.7252]
[1733234157146,37.49048159,216.31,216.08,4.6025]
[1733234157352,37.49048159,216.48,215.93,1.7252]
[1733234157353,37.49048159,216.13,215.93,1.7252]
[1733234157551,37.49048159,216.48,215.93,39.21568159]
[1733234157552,37.49048159,216.29,215.93,39.21568159]
[1733234157750,37.49048159,216.23,215.93,1.7252]
[1733234157950,37.49048159,216.29,215.94,1.8454]
[1733234158146,37.49048159,216.23,215.94,1.8454]
[1733234158352,1.0,216.42,215.94,87.39588159]
[1733234158549,1.0,216.42,215.98,37.49048159]
[1733234158550,37.49048159,216.32,215.98,37.49048159]
[1733234158752,37.49048159,216.26,216.16,2.3127]
[1733234158949,37.49048159,216.2,215.93,1.7252]
[1733234159148,37.49048159,216.27,216.08,13.58]
[1733234159353,37.49048159,216.21,215.93,1.7252]
[1733234160048,37.49048159,216.48,215.96,37.49048159]
[1733234160250,37.49048159,216.38,216.08,13.58]
[1733234160454,38.49048159,216.47,216.08,40.15718159]
[1733234160753,37.49048159,216.35,216.08,2.6667]
[1733234161149,37.49048159,216.35,216.09,13.58]
[1733234161346,37.49048159,216.35,216.17,13.58]
[1733234161546,1.0,216.47,215.76,4.634]
[1733234161547,37.49048159,216.22,215.76,4.634]
[1733234161750,13.61,216.45,215.9,37.49048159]
[1733234162050,37.49048159,216.27,215.97,37.49048159]
[1733234162253,37.49048159,216.27,215.91,37.49048159]
[1733234162451,37.49048159,216.33,215.97,37.49048159]
[1733234162645,1.0,216.34,216.09,37.49048159]
[1733234162850,37.49048159,216.44,216.08,2.8021]
[1733234163051,37.49048159,216.41,216.08,2.8021]
[1733234163350,51.1787,216.67,216.08,2.8021]
[1733234163351,37.49048159,216.32,216.09,13.58]
[1733234163551,37.49048159,216.44,216.15,13.58]
[1733234163949,37.49048159,216.5,216.17,13.58]
[1733234164150,52.711,216.85,216.28,37.49048159]
[1733234164453,37.49048159,216.96,216.41,13.58]
[1733234164454,3.2389,216.91,216.41,13.58]
[1733234164659,37.49048159,216.76,216.43,12.58]
[1733234164953,37.49048159,216.78,216.64,2.3076]
[1733234165147,1.6448343,216.84,216.48,48.1]
[1733234165346,37.49048159,216.78,216.49,11.58]
[1733234165550,37.49048159,216.72,216.49,11.58]
[1733234165755,37.49048159,216.72,216.45,13.58]
[1733234166155,37.49048159,216.65,216.44,2.6705]
[1733234166455,0.6448343,216.84,216.26,2.8015]
[1733234166456,37.49048159,216.59,216.26,2.8015]
[1733234166752,37.49048159,216.59,216.46,13.58]
[1733234166953,37.49048159,216.53,216.45,2.72]
[1733234167161,37.49048159,216.72,216.12,48.08]
[1733234167162,37.49048159,216.47,216.12,48.08]
[1733234167347,37.49048159,216.47,216.15,37.49048159]
[1733234167756,37.49048159,216.47,216.32,2.311]
[1733234167950,37.49048159,216.41,216.13,13.58]
[1733234168157,37.49048159,216.35,216.13,13.58]
[1733234168453,37.49048159,216.41,216.2,13.58]
[1733234168855,37.49048159,216.49,216.2,13.58]
[1733234169256,37.49048159,216.43,216.27,13.58]
[1733234169453,37.49048159,216.43,216.13,13.58]
[1733234169648,48.08,216.63,216.13,13.58]
[1733234169853,37.49048159,216.51,216.18,37.49048159]
[1733234170152,37.49048159,216.58,216.3,37.49048159]
[1733234170354,37.49048159,216.69,216.37,37.49048159]
[1733234170553,37.49048159,216.69,216.39,13.58]
[1733234170752,37.49048159,216.69,216.32,2.6527]
[1733234170753,37.49048159,216.63,216.33,13.58]
[1733234170956,27.49048159,216.63,216.32,2.6527]
[1733234171153,27.49048159,216.63,216.33,0.70214]
[1733234171355,37.49048159,216.69,216.58,2.3083]
[1733234171556,37.49048159,216.75,216.49,13.58]
[1733234171865,37.49048159,216.68,216.37,37.49048159]
[1733234172059,37.49048159,216.68,216.35,37.49048159]
[1733234172260,37.49048159,216.56,216.33,0.70214]
[1733234172860,37.49048159,216.5,216.33,0.70214]
[1733234173360,37.49048159,216.5,216.34,3.69]
[1733234173558,37.49048159,216.56,216.34,3.69]
[1733234173856,48.06,216.8,216.34,3.69]
[1733234173857,37.49048159,216.63,216.35,48.06]
[1733234174662,37.49048159,216.63,216.36,13.58]
[1733234174859,37.49048159,216.69,216.36,13.58]
[1733234175266,37.49048159,216.69,216.52,13.58]
[1733234175566,37.49048159,216.75,216.52,13.58]
[1733234175759,39.79698159,216.75,216.58,2.3082]
[1733234176068,37.49048159,216.87,216.56,13.58]
[1733234176457,37.49048159,216.87,216.58,13.58]
[1733234176458,27.49048159,216.87,216.58,13.58]
[1733234176658,37.49048159,216.88,216.58,13.58]
[1733234177462,5.5005,217.11,216.64,13.58]
[1733234177666,37.49048159,217.01,216.71,13.58]
[1733234178565,37.49048159,217.09,216.93,2.3045]
[1733234178766,37.49048159,217.09,216.77,13.58]
[1733234178767,37.49048159,217.09,216.81,61.62]
[1733234179173,37.49048159,217.09,216.83,13.58]
[1733234179372,37.49048159,217.09,216.96,2.3042]
[1733234179677,37.49048159,217.15,216.83,13.58]
[1733234180272,37.49048159,217.15,216.85,13.58]
[1733234180478,37.49048159,217.15,216.94,2.3045]
[1733234180679,37.49048159,217.15,216.85,13.58]
[1733234181076,37.49048159,217.15,216.94,13.58]
[1733234181373,37.49048159,217.21,216.94,13.58]
[1733234182080,37.49048159,217.21,216.85,13.58]
[1733234182275,2.3019,217.19,216.95,2.3043]
[1733234182475,37.49048159,217.15,216.85,13.58]
[1733234182674,5.4334,217.33,216.91,13.58]
[1733234182675,37.49048159,217.21,216.91,13.58]
[1733234183076,37.49048159,217.26,216.91,13.58]
[1733234183477,37.49048159,217.26,216.82,2.8801]
[1733234183478,37.49048159,217.26,217.02,13.58]
[1733234183780,37.49048159,217.32,217.03,61.6]
[1733234183982,37.49048159,217.32,217.04,13.58]
[1733234184181,37.49048159,217.32,217.03,47.98]
[1733234184785,37.49048159,217.38,217.03,50.7927]
[1733234184976,37.49048159,217.38,217.17,2.302]
[1733234185180,37.49048159,217.38,217.09,13.58]
[1733234185377,37.49048159,217.38,217.12,37.49048159]
[1733234185682,2.7447,217.53,217.17,13.58]
[1733234185882,34.91640347,217.58,217.2,34.91640347]
[1733234186079,34.91640347,217.44,217.2,48.49640347]
[1733234186280,0.64889685,217.52,217.2,48.49640347]
[1733234186581,34.91640347,217.48,217.25,13.58]
[1733234186780,34.91640347,217.41,217.35,2.3001]
[1733234186985,34.91640347,217.41,217.15,34.91640347]
[1733234187178,34.91640347,217.47,217.2,34.91640347]
[1733234187378,34.91640347,217.58,217.15,34.91640347]
[1733234187576,34.91640347,217.58,217.21,34.91640347]
[1733234187577,34.91640347,217.45,217.21,34.91640347]
[1733234187778,34.91640347,217.58,217.15,34.91640347]
[1733234187779,34.91640347,217.58,217.26,34.91640347]
[1733234187981,34.91640347,217.55,217.32,13.58]
[1733234188177,34.91640347,217.6,217.37,13.58]
[1733234188582,34.91640347,217.64,217.41,13.58]
[1733234188789,34.91640347,217.69,217.45,13.58]
[1733234189080,34.91640347,217.91,217.54,13.58]
[1733234189282,34.91640347,217.77,217.54,61.52]
[1733234189777,34.91640347,217.77,217.58,13.58]
[1733234190374,34.91640347,217.77,217.69,2.2966]
[1733234190686,34.91640347,217.86,217.66,13.58]
[1733234190877,34.91640347,218.02,217.81,2.2954]
[1733234190878,34.91640347,217.94,217.81,2.2954]
[1733234191085,34.91640347,217.94,217.7,48.49640347]
[1733234191381,34.91640347,217.9,217.7,48.49640347]
[1733234191880,34.91640347,217.98,217.74,48.49640347]
[1733234192087,34.91640347,217.98,217.84,2.295]
[1733234192384,34.91640347,217.98,217.79,13.58]
[1733234192683,40.32340347,218.13,217.89,2.2945]
[1733234192684,34.91640347,218.02,217.89,2.2945]
[1733234192879,34.91640347,218.02,217.79,13.58]
[1733234192880,34.91640347,218.13,217.79,13.58]
[1733234193085,34.91640347,218.05,217.9,2.2944]
[1733234193281,34.91640347,218.05,217.84,13.58]
[1733234193582,34.91640347,217.92,217.61,47.86]
[1733234193886,0.65064732,218.12,217.58,34.91640347]
[1733234193887,34.91640347,217.78,217.58,34.91640347]
[1733234194081,34.91640347,217.91,217.54,13.58]
[1733234194082,34.91640347,217.74,217.54,13.58]
[1733234194280,34.91640347,217.74,217.52,13.58]
[1733234194476,34.91640347,217.74,217.52,48.49640347]
[1733234194679,13.61,218.06,217.57,34.91640347]
[1733234194983,34.91640347,217.8,217.49,2.7927]
[1733234195282,34.91640347,217.91,217.68,2.2967]
[1733234195283,34.91640347,217.84,217.68,2.2967]
[1733234195481,34.91640347,217.85,217.69,13.58]
[1733234195987,34.91640347,217.84,217.72,13.58]
[1733234196280,0.65040614,218.05,217.72,13.58]
[1733234196482,0.65040614,218.05,217.74,48.49640347]
[1733234196483,34.91640347,217.97,217.74,48.49640347]
[1733234196884,0.65040614,218.05,217.85,34.91640347]
[1733234197084,0.65040614,218.05,217.86,13.58]
[1733234197283,0.65040614,218.05,217.86,48.49640347]
[1733234197581,0.65051173,218.04,217.92,15.8742]
[1733234197784,0.65051173,218.04,217.92,13.58]
[1733234198083,0.65040614,218.05,217.97,13.58]
[1733234198387,34.91640347,218.24,218.07,13.58]
[1733234198784,34.91640347,218.28,218.13,13.58]
[1733234199389,34.91640347,218.27,218.13,13.58]
[1733234199579,34.91640347,218.23,217.99,13.58]
[1733234199783,34.91640347,218.19,218.0,13.58]
[1733234199981,34.91640347,218.19,217.98,2.2935]
[1733234200286,34.91640347,218.2,217.99,34.91640347]
[1733234200479,34.91640347,218.24,217.78,47.8]
[1733234200685,34.91640347,218.24,217.85,13.58]
[1733234200686,34.91640347,218.09,217.85,13.58]
[1733234200983,34.91640347,218.09,217.94,13.58]
[1733234201291,34.91640347,218.13,217.94,13.58]
[1733234201684,34.91640347,218.13,217.97,13.58]
[1733234201883,34.91640347,218.03,217.84,13.58]
[1733234202089,34.91640347,218.03,217.87,15.8747]
[1733234202392,34.91640347,218.13,217.92,13.58]
[1733234202587,34.91640347,218.17,217.96,13.58]
[1733234202782,34.91640347,218.21,218.04,13.58]
[1733234202985,34.91640347,218.28,218.04,13.58]